fUST/lending_fUST_20260318
["ID","MTS","AMOUNT","RATE_DAILY","PERIOD"]
[408502268,1773769838598,-500.0,3.029e-05,2]
[408502269,1773769838608,-500.0,3.029e-05,2]
[408502270,1773769838618,-500.0,3.029e-05,2]
[408502271,1773769838627,-500.0,3.029e-05,2]
[408502272,1773769838637,-500.0,3.029e-05,2]
[408502273,1773769838647,-500.0,3.029e-05,2]
[408502274,1773769838656,-500.0,3.029e-05,2]
[408502275,1773769838666,-500.0,3.029e-05,2]
[408502276,1773769838676,-500.0,3.029e-05,2]
[408502277,1773769838688,-500.0,3.029e-05,2]
[408502278,1773769838697,-500.0,3.029e-05,2]
[408502279,1773769838707,-500.0,3.029e-05,2]
[408502280,1773769838715,-500.0,3.029e-05,2]
[408502281,1773769838724,-500.0,3.029e-05,2]
[408502282,1773769838735,-500.0,3.029e-05,2]
[408502283,1773769838744,-500.0,3.029e-05,2]
[408502284,1773769838754,-500.0,3.029e-05,2]
[408502285,1773769838763,-500.0,3.029e-05,2]
[408502286,1773769838772,-500.0,3.029e-05,2]
[408502287,1773769838781,-500.0,3.029e-05,2]
[408502288,1773769838791,-500.0,3.029e-05,2]
[408502289,1773769838801,-500.0,3.029e-05,2]
[408502290,1773769838810,-500.0,3.029e-05,2]
[408502291,1773769838820,-500.0,3.029e-05,2]
[408502292,1773769838830,-500.0,3.029e-05,2]
[408502293,1773769838839,-500.0,3.029e-05,2]
[408502294,1773769838848,-500.0,3.029e-05,2]
[408502295,1773769838858,-500.0,3.029e-05,2]
[408502296,1773769838867,-500.0,3.029e-05,2]
[408502297,1773769838876,-500.0,3.029e-05,2]
[408502298,1773769838886,-500.0,3.029e-05,2]
[408502299,1773769838896,-500.0,3.029e-05,2]
[408502300,1773769838906,-500.0,3.029e-05,2]
[408502301,1773769838916,-500.0,3.029e-05,2]
[408502302,1773769838925,-500.0,3.029e-05,2]
[408502303,1773769838935,-500.0,3.029e-05,2]
[408502304,1773769838944,-500.0,3.029e-05,2]
[408502305,1773769838954,-500.0,3.029e-05,2]
[408502306,1773769838963,-500.0,3.029e-05,2]
[408502307,1773769838973,-500.0,3.029e-05,2]
[408502308,1773769838983,-500.0,3.029e-05,2]
[408502309,1773769838993,-500.0,3.029e-05,2]
[408502310,1773769839004,-283.39,3.029e-05,2]
[408502311,1773769839013,-600.0,3.089e-05,2]
[408502312,1773769839023,-720.0,3.397e-05,2]
[408502313,1773769839034,-500.0,3.523e-05,2]
[408502314,1773769839043,-227.35707143,3.523e-05,2]
[408502315,1773769839053,-500.0,3.523e-05,2]
[408502316,1773769839062,-500.0,3.523e-05,2]
[408502317,1773769839076,-500.0,3.523e-05,2]
[408502318,1773769839085,-500.0,3.523e-05,2]
[408502319,1773769839095,-500.15715899,3.523e-05,2]
[408502320,1773769839104,-864.0,3.737e-05,2]
[408502321,1773769839113,-647.19442264,4.07e-05,2]
[408502322,1773769839123,-1000.0,4.07e-05,2]
[408502323,1773769839139,-1000.0,4.07e-05,2]
[408502324,1773769839149,-1000.0,4.111e-05,2]
[408502325,1773769839159,-1000.0,4.522e-05,2]
[408502326,1773769839170,-244.0,4.522e-05,2]
[408502327,1773769839180,-1500.0,4.618e-05,2]
[408502328,1773769839190,-1500.0,4.618e-05,2]
[408502329,1773769839200,-1396.0,4.659e-05,2]
[408502330,1773769839210,-640.0,4.659e-05,2]
[408502331,1773769839219,-2187.0,4.659e-05,2]
[408502332,1773769839229,-150.399,4.659e-05,2]
[408502333,1773769839239,-249.689,4.659e-05,2]
[408502334,1773769839248,-1000.0,4.974e-05,2]
[408502335,1773769839258,-492.0,4.974e-05,2]
[408502336,1773769839268,-335.05411608,5e-05,2]
[408502337,1773769839279,-500.0,5e-05,2]
[408502338,1773769839289,-500.0,5e-05,2]
[408502339,1773769839299,-500.0,5e-05,2]
[408502340,1773769839308,-500.0,5e-05,2]
[408502341,1773769839318,-500.0,5e-05,2]
[408502342,1773769839328,-500.0,5e-05,2]
[408502343,1773769839338,-163.39564371,5e-05,2]
[408502344,1773769839347,-500.0,5e-05,2]
[408502345,1773769839357,-500.0,5e-05,2]
[408502346,1773769839366,-500.0,5e-05,2]
[408502347,1773769839377,-500.0,5e-05,2]
[408502348,1773769839387,-500.0,5e-05,2]
[408502349,1773769839397,-500.0,5e-05,2]
[408502350,1773769839406,-500.0,5e-05,2]
[408502351,1773769839416,-500.0,5e-05,2]
[408502352,1773769839425,-500.0,5e-05,2]
[408502353,1773769839435,-267.39508327,5e-05,2]
[408502354,1773769839444,-500.0,5e-05,2]
[408502355,1773769839454,-500.0,5e-05,2]
[408502356,1773769839465,-500.0,5e-05,2]
[408502357,1773769839475,-500.0,5e-05,2]
[408502358,1773769839485,-500.0,5e-05,2]
[408502359,1773769839495,-500.0,5e-05,2]
[408502360,1773769839504,-649.67167678,5e-05,2]
[408502361,1773769839514,-500.0,5e-05,2]
[408502362,1773769839524,-500.0,5e-05,2]
[408502363,1773769839534,-500.0,5e-05,2]
[408502364,1773769839543,-500.0,5e-05,2]
[408502365,1773769839553,-347.47590605,5e-05,2]
[408502366,1773769839564,-500.0,5e-05,2]
[408502367,1773769839573,-500.0,5e-05,2]
[408502368,1773769839584,-500.0,5e-05,2]
[408502369,1773769839594,-500.0,5e-05,2]
[408502370,1773769839604,-500.0,5e-05,2]
[408502371,1773769839614,-500.0,5e-05,2]
[408502372,1773769839623,-500.0,5e-05,2]
[408502373,1773769839633,-500.0,5e-05,2]
[408502374,1773769839642,-500.0,5e-05,2]
[408502375,1773769839652,-500.0,5e-05,2]
[408502376,1773769839662,-2000.0,5.166e-05,2]
[408502377,1773769839672,-2000.0,5.166e-05,2]
[408502378,1773769839682,-1000.0,5.472e-05,2]
[408502380,1773769839692,-791.0,5.472e-05,2]
[408502381,1773769839701,-500.0,5.479e-05,2]
[408502382,1773769839711,-500.0,5.479e-05,2]
[408502383,1773769839721,-400.78883747,5.479e-05,2]
[408502384,1773769839730,-2150.738,5.5e-05,2]
[408502385,1773769839740,-2500.0,5.714e-05,2]
[408502386,1773769839750,-574.73987736,5.714e-05,2]
[408502387,1773769839760,-1000.0,6.019e-05,2]
[408502388,1773769839769,-1000.0,6.019e-05,2]
[408502389,1773769839779,-2230.315306,6.048e-05,2]
[408502390,1773769839790,-3000.0,6.262e-05,2]
[408502391,1773769839799,-2312.83697232,6.596e-05,2]
[408502392,1773769839809,-1000.0,6.621e-05,2]
[408502393,1773769839819,-1000.0,6.621e-05,2]
[408502394,1773769839829,-579.0,6.621e-05,2]
[408502395,1773769839839,-788.0,6.8e-05,2]
[408502397,1773769839849,-3500.0,6.81e-05,2]
[408502398,1773769839860,-2398.4119403,7.144e-05,2]
[408502399,1773769839870,-1000.0,7.283e-05,2]
[408502400,1773769839881,-1000.0,7.283e-05,2]
[408502401,1773769839891,-301.0,7.283e-05,2]
[408502402,1773769839901,-4000.0,7.358e-05,2]
[408502403,1773769839912,-1396.0,7.659e-05,2]
[408502404,1773769839923,-640.0,7.659e-05,2]
[408502405,1773769839933,-2187.0,7.659e-05,2]
[408502406,1773769839944,-2487.15318209,7.692e-05,2]
[408502407,1773769839953,-699.009,7.7e-05,2]
[408502408,1773769839963,-158.0,7.887e-05,2]
[408502409,1773769839973,-2490.51804962,7.906e-05,2]
[408502412,1773769840206,-2009.48195038,7.906e-05,2]
[408502413,1773769840216,-500.0,8.219e-05,2]
[408502414,1773769840226,-500.0,8.219e-05,2]
[408502415,1773769840236,-220.74367932,8.219e-05,2]
[408502416,1773769840246,-500.0,8.219e-05,2]
[408502417,1773769840256,-500.0,8.219e-05,2]
[408502418,1773769840266,-500.0,8.219e-05,2]
[408502419,1773769840276,-500.0,8.219e-05,2]
[408502420,1773769840286,-500.0,8.219e-05,2]
[408502421,1773769840295,-500.0,8.219e-05,2]
[408502422,1773769840305,-500.78070585,8.219e-05,2]
[408502423,1773769840315,-500.0,8.219e-05,2]
[408502424,1773769840324,-2579.17784983,8.24e-05,2]
[408502425,1773769840334,-5000.0,8.454e-05,2]
[408502426,1773769840344,-500.0,8.493e-05,2]
[408502440,1773769840575,-500.0,8.767e-05,2]
[408502441,1773769840586,-2674.60743027,8.788e-05,2]
[408502443,1773769840597,-158.0,8.887e-05,2]
[408502444,1773769840607,-5000.0,9e-05,2]
[408502446,1773769840618,-5000.0,9e-05,2]
[408502448,1773769840627,-5500.0,9.002e-05,2]
[408502449,1773769840636,-500.0,9.041e-05,2]
[408502451,1773769840646,-38000.0,9.202e-05,2]
[408502452,1773769840656,-38000.0,9.211e-05,2]
[408502454,1773769840667,-500.0,9.315e-05,2]
[408502456,1773769840677,-2773.56790519,9.336e-05,2]
[408502457,1773769840686,-598.19282029,9.55e-05,2]
[408502459,1773769840696,-500.0,9.589e-05,2]
[408502461,1773769840705,-500.0,9.863e-05,2]
[408502463,1773769840715,-2876.18991768,9.884e-05,2]
[408502465,1773769840725,-500.0,9.932e-05,2]
[408502467,1773769840734,-10061.50248102,0.0001,2]
[408502468,1773769840744,-10061.50248102,0.000101,2]
[408502469,1773769840753,-500.0,0.00010137,2]
[408502470,1773769840763,-10061.50248102,0.000102,2]
[408502471,1773769840772,-10061.50248102,0.000103,2]
[408502472,1773769840782,-501.28698986,0.00010398,2]
[408502473,1773769840792,-10061.50248102,0.000104,2]
[408502474,1773769840802,-500.0,0.00010411,2]
[408502475,1773769840812,-2982.60894464,0.00010432,2]
[408502476,1773769840821,-10061.50248102,0.000105,2]
[408502477,1773769840831,-10061.50248102,0.000106,2]
[408502478,1773769840840,-399.211,0.00010659,2]
[408502479,1773769840850,-640.0,0.00010659,2]
[408502480,1773769840860,-761.024,0.00010659,2]
[408502481,1773769840869,-506.18666526,0.00010685,2]
[408502482,1773769840878,-10061.50248102,0.000107,2]
[408502483,1773769840888,-10061.50248102,0.000108,2]
[408502484,1773769840897,-1985.78777393,0.000108,2]
[408502485,1773769840907,-10061.50248102,0.000109,2]
[408502486,1773769840917,-3092.96547559,0.0001098,2]
[408502487,1773769840926,-10061.50248102,0.00011,2]
[408502488,1773769840937,-151.0,0.00011,2]
[408502489,1773769840946,-500.0,0.00011,2]
[408502490,1773769840955,-151.0,0.00011,2]
[408502491,1773769840964,-151.0,0.00011,2]
[408502492,1773769840974,-151.0,0.00011,2]
[408502493,1773769840984,-151.0,0.000111,2]
[408502494,1773769840994,-151.0,0.000111,2]
[408502496,1773769841006,-151.0,0.000111,2]
[408502497,1773769841015,-151.0,0.000111,2]
[408502499,1773769841024,-10061.50248102,0.000112,2]
[408502501,1773769841035,-151.0,0.000112,2]
[408502503,1773769841044,-151.0,0.000112,2]
[408502505,1773769841054,-151.0,0.000112,2]
[408502507,1773769841063,-151.0,0.000112,2]
[408502509,1773769841072,-154.56263369,0.00011241,4]
[408502511,1773769841081,-162.380719,0.00011241,4]
[408502513,1773769841091,-500.0,0.00011241,4]
[408502514,1773769841100,-168.3888056,0.00011241,4]
[408502516,1773769841109,-500.0,0.00011241,4]
[408502519,1773769841119,-174.61919141,0.00011241,4]
[408502521,1773769841128,-500.0,0.00011241,4]
[408502523,1773769841138,-166.70606802,0.00011241,4]
[408502525,1773769841148,-500.0,0.00011241,4]
[408502526,1773769841157,-264.51559332,0.00011241,4]
[408502528,1773769841166,-500.0,0.00011241,4]
[408502531,1773769841176,-500.0,0.00011241,4]
[408502532,1773769841185,-500.0,0.00011241,4]
[408502534,1773769841195,-500.0,0.00011241,4]
[408502536,1773769841204,-500.0,0.00011241,4]
[408502539,1773769841216,-500.0,0.00011241,4]
[408502540,1773769841224,-500.0,0.00011241,4]
[408502542,1773769841234,-500.0,0.00011241,4]
[408502544,1773769841243,-500.0,0.00011241,4]
[408502547,1773769841254,-500.0,0.00011241,4]
[408502549,1773769841265,-500.0,0.00011241,4]
[408502551,1773769841275,-500.0,0.00011241,4]
[408502553,1773769841284,-500.0,0.00011241,4]
[408502555,1773769841293,-500.0,0.00011241,4]
[408502557,1773769841302,-181.29316479,0.00011241,4]
[408502559,1773769841311,-334.95043373,0.00011241,4]
[408502561,1773769841320,-10061.50248102,0.000113,2]
[408502563,1773769841331,-151.0,0.000113,2]
[408502565,1773769841340,-151.0,0.000113,2]
[408502567,1773769841349,-151.0,0.000113,2]
[408502569,1773769841358,-151.0,0.000113,2]
[408502571,1773769841368,-10061.50248102,0.000114,2]
[408502573,1773769841378,-151.0,0.000114,2]
[408502575,1773769841387,-151.0,0.000114,2]
[408502577,1773769841396,-151.0,0.000114,2]
[408502578,1773769841406,-151.0,0.000114,2]
[408502580,1773769841415,-10061.50248102,0.000115,2]
[408502582,1773769841424,-151.0,0.000115,2]
[408502584,1773769841434,-151.0,0.000115,2]
[408502586,1773769841444,-151.0,0.000115,2]
[408502588,1773769841454,-151.0,0.000115,2]
[408502590,1773769841464,-3207.40519818,0.00011528,2]
[408502592,1773769841475,-10061.50248102,0.000116,2]
[408502594,1773769841485,-151.0,0.000116,2]
[408502596,1773769841494,-151.0,0.000116,2]
[408502598,1773769841504,-151.0,0.000116,2]
[408502600,1773769841514,-151.0,0.000116,2]
[408502602,1773769841523,-10061.50248102,0.000117,2]
[408502604,1773769841532,-151.0,0.000117,2]
[408502606,1773769841542,-151.0,0.000117,2]
[408502608,1773769841551,-151.0,0.000117,2]
[408502610,1773769841560,-151.0,0.000117,2]
[408502612,1773769841569,-2344.72747163,0.0001176,2]
[408502614,1773769841578,-202.809665,0.0001176,2]
[408502616,1773769841587,-160.0,0.0001176,2]
[408502618,1773769841596,-269.947129,0.0001176,2]
[408502620,1773769841606,-379.894259,0.0001176,2]
[408502621,1773769841615,-195.857345,0.0001176,2]
[408502622,1773769841624,-160.0,0.0001176,2]
[408502623,1773769841633,-270.520731,0.0001176,2]
[408502624,1773769841643,-381.041463,0.0001176,2]
[408502625,1773769841653,-10061.50248102,0.000118,2]
[408502626,1773769841663,-151.0,0.000118,2]
[408502627,1773769841676,-151.0,0.000118,2]
[408502628,1773769841687,-151.0,0.000118,2]
[408502629,1773769841697,-151.0,0.000118,2]
[408502630,1773769841707,-151.0,0.000119,2]
[408502631,1773769841716,-151.0,0.000119,2]
[408502632,1773769841725,-151.0,0.000119,2]
[408502633,1773769841735,-11647.65640468,0.000119,2]
[408502634,1773769841745,-151.0,0.000119,2]
[408502635,1773769841755,-80967.89872044,0.00012,2]
[408502636,1773769841764,-782338.69593708,0.00012,2]
[408502637,1773769841774,-466949.74575076,0.00012,2]
[408502638,1773769841783,-158.0,0.00012,2]
[408502639,1773769841793,-158.0,0.00012,2]
[408502640,1773769841803,-1402.0,0.00012,3]
[408502641,1773769841812,-194.97693846,0.00012,60]
[408502642,1773769841823,-10061.50248102,0.00012,2]
[408502643,1773769841832,-151.0,0.00012,2]
[408502644,1773769841841,-151.0,0.00012,2]
[408502645,1773769841852,-439.30090129,0.00012,2]
[408502646,1773769841861,-15380.3736,0.00012055,2]
[408502647,1773769841870,-3326.07919052,0.00012076,2]
[408502648,1773769841879,-10061.50248102,0.000121,2]
[408502649,1773769841888,-10000.0,0.00012164,2]
[408502650,1773769841898,-10061.50248102,0.000122,2]
[408502651,1773769841907,-10061.50248102,0.000123,2]
[408502652,1773769841916,-9868.57,0.00012329,2]
[408502653,1773769841926,-8223.81,0.00012329,2]
[408502654,1773769841935,-6853.17,0.00012329,2]
[408502655,1773769841944,-5710.98,0.00012329,2]
[408502656,1773769841954,-4759.15,0.00012329,2]
[408502657,1773769841963,-3965.95,0.00012329,2]
[408502658,1773769841972,-3304.96,0.00012329,2]
[408502659,1773769841981,-2754.14,0.00012329,2]
[408502660,1773769841991,-2295.11,0.00012329,2]
[408502661,1773769842003,-1912.59,0.00012329,2]
[408502662,1773769842012,-1593.83,0.00012329,2]
[408502663,1773769842022,-1328.19,0.00012329,2]
[408502664,1773769842032,-1106.83,0.00012329,2]
[408502665,1773769842043,-922.35,0.00012329,2]
[408502666,1773769842053,-768.63,0.00012329,2]
[408502667,1773769842063,-640.52,0.00012329,2]
[408502668,1773769842072,-533.77,0.00012329,2]
[408502669,1773769842081,-444.81,0.00012329,2]
[408502670,1773769842091,-370.67,0.00012329,2]
[408502671,1773769842100,-308.9,0.00012329,2]
[408502672,1773769842109,-257.41,0.00012329,2]
[408502673,1773769842119,-214.51,0.00012329,2]
[408502674,1773769842128,-178.76,0.00012329,2]
[408502675,1773769842137,-893.82,0.00012329,2]
[408502676,1773769842146,-10061.50248102,0.000124,2]
[408502677,1773769842156,-151.0,0.0001248,2]
[408502678,1773769842166,-11734.3548138,0.000125,2]
[408502679,1773769842175,-158.0,0.000126,2]
[408502680,1773769842184,-10061.50248102,0.000126,2]
[408502681,1773769842195,-3449.14412057,0.00012624,2]
[408502682,1773769842205,-500.0,0.00012627,2]
[408502683,1773769842215,-335.00085499,0.00012684,2]
[408502684,1773769842225,-10061.50248102,0.000127,2]
[408502685,1773769842234,-231.2601642,0.00012729,2]
[408502686,1773769842243,-10061.50248102,0.000128,2]
[408502687,1773769842253,-162.0,0.00012893,2]
[408502688,1773769842264,-162.0,0.00012893,2]
[408502689,1773769842273,-162.0,0.00012893,2]
[408502690,1773769842282,-162.0,0.00012893,2]
[408502691,1773769842291,-162.0,0.00012893,2]
[408502692,1773769842300,-162.0,0.00012893,2]
[408502693,1773769842309,-162.0,0.00012893,2]
[408502694,1773769842319,-169.0,0.00012893,2]
[408502695,1773769842328,-162.0,0.00012893,2]
[408502696,1773769842338,-2790.5,0.000129,2]
[408502697,1773769842347,-231.2601642,0.00012983,7]
[408502698,1773769842356,-285.61558967,0.00013,2]
[408502699,1773769842365,-160.98247027,0.00013,3]
[408502700,1773769842374,-158.0,0.00013,3]
[408502701,1773769842384,-158.0,0.00013,2]
[408502702,1773769842394,-15871.45478325,0.00013,2]
[408502703,1773769842403,-151.01208096,0.00013,60]
[408502704,1773769842412,-10061.50248102,0.00013,2]
[408502705,1773769842421,-151.0,0.00013,2]
[408502706,1773769842432,-474.45132437,0.000131,2]
[408502707,1773769842441,-10061.50248102,0.000131,2]
[408502708,1773769842454,-3576.76245303,0.00013172,2]
[408502709,1773769842465,-10061.50248102,0.000132,2]
[408502710,1773769842473,-28920.95505552,0.00013256,2]
[408502711,1773769842483,-500.0,0.00013292,2]
[408502712,1773769842493,-158.0,0.000133,3]
[408502713,1773769842503,-7000.0,0.000133,2]
[408502714,1773769842512,-10061.50248102,0.000133,2]
[408502715,1773769842522,-231.2601642,0.00013365,14]
[408502716,1773769842532,-10061.50248102,0.000135,2]
[408502717,1773769842542,-15684.64980759,0.000136,2]
[408502718,1773769842551,-10061.50248102,0.000136,2]
[408502719,1773769842561,-1163.39785992,0.00013614,2]
[408502720,1773769842570,-282.941,0.00013659,2]
[408502721,1773769842579,-300.0,0.00013673,2]
[408502722,1773769842588,-500.0,0.00013698,2]
[408502723,1773769842598,-500.0,0.00013698,2]
[408502724,1773769842607,-500.0,0.00013698,2]
[408502725,1773769842618,-500.0,0.00013698,2]
[408502726,1773769842627,-500.0,0.00013698,2]
[408502727,1773769842637,-326.9848474,0.00013698,2]
[408502728,1773769842646,-2098.94,0.00013698,2]
[408502729,1773769842655,-2098.94,0.00013698,2]
[408502730,1773769842666,-2098.94,0.00013698,2]
[408502731,1773769842675,-2098.94,0.00013698,2]
[408502732,1773769842684,-2098.94,0.00013698,2]
[408502733,1773769842695,-2098.94,0.00013698,2]
[408502735,1773769842704,-2098.94,0.00013698,2]
[408502736,1773769842713,-2098.94,0.00013698,2]
[408502737,1773769842722,-2098.94,0.00013698,2]
[408502738,1773769842732,-2098.94,0.00013698,2]
[408502739,1773769842742,-2098.94,0.00013698,2]
[408502740,1773769842751,-2098.94,0.00013698,2]
[408502741,1773769842761,-2098.94,0.00013698,2]
[408502742,1773769842771,-2098.94,0.00013698,2]
[408502743,1773769842780,-2098.94,0.00013698,2]
[408502744,1773769842789,-2098.94,0.00013698,2]
[408502745,1773769842798,-2098.94,0.00013698,2]
[408502746,1773769842808,-2098.94,0.00013698,2]
[408502747,1773769842817,-2098.94,0.00013698,2]
[408502748,1773769842826,-2098.94,0.00013698,2]
[408502749,1773769842835,-2098.94,0.00013698,2]
[408502750,1773769842844,-2098.94,0.00013698,2]
[408502751,1773769842853,-2098.94,0.00013698,2]
[408502752,1773769842863,-2099.05038659,0.00013698,2]
[408502753,1773769842871,-2771.04,0.00013698,2]
[408502754,1773769842881,-2771.04,0.00013698,2]
[408502755,1773769842890,-2771.04,0.00013698,2]
[408502756,1773769842900,-2771.04,0.00013698,2]
[408502758,1773769842910,-2771.04,0.00013698,2]
[408502759,1773769842920,-2771.04,0.00013698,2]
[408502760,1773769842931,-2771.04,0.00013698,2]
[408502761,1773769842941,-2771.04,0.00013698,2]
[408502762,1773769842951,-2771.04,0.00013698,2]
[408502763,1773769842960,-2771.04,0.00013698,2]
[408502765,1773769842969,-2771.04,0.00013698,2]
[408502766,1773769842979,-2771.04,0.00013698,2]
[408502767,1773769842989,-2771.04,0.00013698,2]
[408502768,1773769843001,-2771.04,0.00013698,2]
[408502769,1773769843011,-2771.04,0.00013698,2]
[408502770,1773769843021,-2771.04,0.00013698,2]
[408502771,1773769843032,-2771.04,0.00013698,2]
[408502772,1773769843041,-2771.04,0.00013698,2]
[408502773,1773769843051,-2771.04,0.00013698,2]
[408502774,1773769843061,-2771.04,0.00013698,2]
[408502775,1773769843072,-2771.04,0.00013698,2]
[408502776,1773769843081,-2771.04,0.00013698,2]
[408502777,1773769843090,-2771.04,0.00013698,2]
[408502778,1773769843099,-2771.10938058,0.00013698,2]
[408502779,1773769843108,-640.87,0.00013698,2]
[408502780,1773769843117,-640.87,0.00013698,2]
[408502781,1773769843127,-640.87,0.00013698,2]
[408502782,1773769843136,-640.87,0.00013698,2]
[408502783,1773769843145,-640.87,0.00013698,2]
[408502784,1773769843154,-640.87,0.00013698,2]
[408502785,1773769843164,-640.87,0.00013698,2]
[408502786,1773769843173,-640.87,0.00013698,2]
[408502787,1773769843183,-640.87,0.00013698,2]
[408502788,1773769843193,-640.87,0.00013698,2]
[408502789,1773769843202,-640.87,0.00013698,2]
[408502790,1773769843212,-640.87,0.00013698,2]
[408502791,1773769843221,-640.87,0.00013698,2]
[408502792,1773769843231,-640.87,0.00013698,2]
[408502793,1773769843241,-640.87,0.00013698,2]
[408502794,1773769843251,-640.87,0.00013698,2]
[408502795,1773769843261,-640.87,0.00013698,2]
[408502796,1773769843270,-640.87,0.00013698,2]
[408502797,1773769843279,-640.87,0.00013698,2]
[408502798,1773769843289,-640.87,0.00013698,2]
[408502799,1773769843298,-640.87,0.00013698,2]
[408502800,1773769843308,-640.87,0.00013698,2]
[408502801,1773769843317,-640.87,0.00013698,2]
[408502802,1773769843327,-640.93818512,0.00013698,2]
[408502803,1773769843336,-500.63027005,0.00013698,2]
[408502804,1773769843346,-1621.84,0.00013698,2]
[408502805,1773769843355,-1621.84,0.00013698,2]
[408502806,1773769843364,-1621.84,0.00013698,2]
[408502807,1773769843373,-1621.84,0.00013698,2]
[408502808,1773769843382,-1621.84,0.00013698,2]
[408502809,1773769843391,-1621.84,0.00013698,2]
[408502810,1773769843400,-1621.84,0.00013698,2]
[408502812,1773769843409,-1621.84,0.00013698,2]
[408502814,1773769843418,-1621.84,0.00013698,2]
[408502816,1773769843427,-1621.84,0.00013698,2]
[408502818,1773769843436,-1621.84,0.00013698,2]
[408502820,1773769843445,-1621.84,0.00013698,2]
[408502822,1773769843454,-1621.84,0.00013698,2]
[408502824,1773769843464,-1621.84,0.00013698,2]
[408502826,1773769843474,-1621.84,0.00013698,2]
[408502827,1773769843483,-1621.84,0.00013698,2]
[408502829,1773769843492,-1621.84,0.00013698,2]
[408502830,1773769843502,-1621.84,0.00013698,2]
[408502832,1773769843512,-1621.84,0.00013698,2]
[408502834,1773769843522,-1621.84,0.00013698,2]
[408502836,1773769843532,-1621.84,0.00013698,2]
[408502838,1773769843541,-1621.84,0.00013698,2]
[408502839,1773769843551,-1621.84,0.00013698,2]
[408502840,1773769843560,-1622.01292956,0.00013698,2]
[408502841,1773769843570,-866.76,0.00013698,2]
[408502842,1773769843580,-866.76,0.00013698,2]
[408502843,1773769843589,-866.76,0.00013698,2]
[408502844,1773769843598,-866.76,0.00013698,2]
[408502845,1773769843608,-866.76,0.00013698,2]
[408502846,1773769843617,-866.76,0.00013698,2]
[408502847,1773769843628,-866.76,0.00013698,2]
[408502848,1773769843637,-866.76,0.00013698,2]
[408502849,1773769843647,-866.76,0.00013698,2]
[408502850,1773769843657,-866.76,0.00013698,2]
[408502851,1773769843667,-866.76,0.00013698,2]
[408502852,1773769843677,-866.76,0.00013698,2]
[408502853,1773769843687,-866.76,0.00013698,2]
[408502854,1773769843697,-866.76,0.00013698,2]
[408502855,1773769843706,-866.76,0.00013698,2]
[408502856,1773769843716,-866.76,0.00013698,2]
[408502857,1773769843726,-866.76,0.00013698,2]
[408502858,1773769843735,-866.76,0.00013698,2]
[408502859,1773769843744,-866.76,0.00013698,2]
[408502860,1773769843754,-866.76,0.00013698,2]
[408502861,1773769843763,-866.76,0.00013698,2]
[408502862,1773769843773,-866.76,0.00013698,2]
[408502863,1773769843782,-866.76,0.00013698,2]
[408502864,1773769843792,-866.96022321,0.00013698,2]
[408502865,1773769843801,-763.47,0.00013698,2]
[408502866,1773769843811,-763.47,0.00013698,2]
[408502867,1773769843820,-763.47,0.00013698,2]
[408502868,1773769843830,-763.47,0.00013698,2]
[408502869,1773769843839,-763.47,0.00013698,2]
[408502870,1773769843848,-763.47,0.00013698,2]
[408502871,1773769843857,-763.47,0.00013698,2]
[408502872,1773769843867,-763.47,0.00013698,2]
[408502873,1773769843876,-763.47,0.00013698,2]